{"text_format":"1","workbook":"xlsx","n_sheets":7,"sheets":["Customer Info","Signature Page","Utility Information","Project Info","IRR Tool","Support","Terms and Conditions"],"not_rendered":{"charts":0,"images":5,"macros":1,"external_links":1,"defined_names":14,"comments":0,"pivot_tables":0},"unopened":[],"bounds":{"document_bytes":16777216,"sheet_cells":100000,"rows_first":2000,"rows_last":500,"rows_between":2000,"halvings":0,"cell_chars":16384,"cell_head_chars":4096},"cells_cut":0,"cells_raw":0,"read":"whole","date_system":"1900"}

{"sheet":"Customer Info","index":0,"n_rows":55,"n_cols":9,"rows_kept":55,"cut":false,"hidden":false,"merged":[[55,0,55,1],[44,0,44,4],[52,0,52,3],[51,0,51,3],[55,3,55,4],[54,3,54,4],[44,5,44,6],[44,7,44,8],[48,5,48,8],[55,5,55,6],[55,7,55,8],[52,6,52,7],[54,5,54,6],[54,7,54,8],[52,4,52,5],[51,4,51,5],[49,0,49,4],[49,5,49,8],[46,0,46,8],[48,0,48,4],[51,6,51,7],[54,0,54,1],[21,6,21,7],[32,2,32,3],[32,4,32,5],[24,6,24,7],[26,7,26,8],[26,5,26,6],[23,6,23,7],[24,0,24,3],[23,4,23,5],[24,4,24,5],[32,0,32,1],[20,6,20,7],[10,0,10,8],[12,0,12,8],[14,7,14,8],[14,5,14,6],[15,5,15,6],[15,7,15,8],[14,0,14,2],[15,0,15,2],[14,3,14,4],[15,3,15,4],[17,3,17,4],[18,5,18,8],[18,0,18,2],[18,3,18,4],[17,0,17,2],[43,7,43,8],[43,0,43,4],[43,5,43,6],[33,4,33,5],[33,2,33,3],[33,0,33,1],[35,0,35,8],[40,0,40,3],[40,4,40,5],[41,0,41,3],[41,4,41,5],[37,5,37,8],[38,5,38,8],[40,6,40,7],[37,0,37,4],[38,0,38,4],[41,6,41,7],[26,0,26,2],[27,0,27,2],[26,3,26,4],[29,0,29,1],[30,0,30,1],[27,5,27,6],[27,7,27,8],[27,3,27,4],[33,6,33,8],[32,6,32,8],[29,4,29,8],[30,4,30,8],[20,0,20,3],[21,0,21,3],[21,4,21,5],[20,4,20,5],[23,0,23,3]]}
[]
[]
[]
[]
[]
[]
[]
[]
[]
[]
["Custom Measures Application - July 1, 2019 through June 30, 2020"]
[]
["Customer Information"]
[]
["Company Name (as listed on utility bill)",null,null,"Company Type",null,"Building Type",null,"Building Square Footage"]
[]
[]
["Formal Legal Name of Company Listed On Utility Bill",null,null,"NAICS Code",null,"How did you hear about the program?"]
[]
[]
["Facility Address",null,null,null,"City",null,"State",null,"Zip Code"]
[null,null,null,null,null,null,"New Jersey"]
[]
["Mailing Address",null,null,null,"City",null,"State",null,"Zip Code"]
[]
[]
["Contact Person",null,null,"E-mail Address",null,"Telephone Number",null,"Fax Number"]
[]
[]
["Incorporated",null,"Federal Tax ID #","NJ Tax ID # (If different)","Payee"]
[]
[]
["Electric Utility",null,"Electric Acct. Number",null,"Gas Utility",null,"Gas Acct. Number"]
[]
[]
["Contractor Information"]
[]
["Company",null,null,null,null,"Contact Person"]
[]
[]
["Mailing Address",null,null,null,"City",null,"State",null,"Zip Code"]
[]
[]
["Contact Email Address",null,null,null,null,"Telephone Number",null,"Fax Number"]
[]
[]
["Payee Information"]
[]
["Company",null,null,null,null,"Contact Person"]
[]
[]
["Mailing Address",null,null,null,"City",null,"State",null,"Zip Code"]
[]
[]
["Federal Tax ID #",null,"NJ Tax ID # (If different)","Contact Email Address",null,"Telephone Number",null,"Fax Number"]

{"sheet":"Signature Page","index":1,"n_rows":44,"n_cols":7,"rows_kept":44,"cut":false,"hidden":false,"merged":[[36,2,36,5],[35,0,35,1],[36,0,36,1],[17,0,17,8],[34,0,34,8],[18,0,18,8],[20,0,20,8],[23,0,23,8],[25,0,25,8],[26,0,26,6],[26,7,26,8],[28,0,28,6],[28,7,28,8],[29,0,29,6],[29,7,29,8],[19,0,19,8],[21,0,21,8],[22,0,22,8],[10,0,10,8],[12,0,12,8],[14,0,14,8],[15,0,15,8],[16,0,16,8],[27,0,27,6],[27,7,27,8],[43,0,43,8],[40,3,41,4],[39,2,39,5],[37,0,37,8],[38,0,38,8],[32,0,32,6],[32,7,32,8],[30,0,30,6],[30,7,30,8],[31,0,31,6],[31,7,31,8],[35,7,35,8],[36,7,36,8],[35,2,35,5]]}
[]
[]
[]
[]
[]
[]
[]
[]
[]
[]
["Custom Electric/Gas Application - July 1, 2019 through June, 30 2020"]
[]
["Custom Application Requirements* These requirements are in addition to the Program Terms and Conditions"]
[]
["1. Please refer to the program guide for additional applicable technical requirements if applicable. "]
["2. A complete application package should include the following: - Application completed and signed by the customer, cost and energy savings calculations information referenced in the application package, project summary describing existing conditions/equipment and proposed custom technology, 12 months of electric and/or gas utility bills including any third party supplier invoices, equipment manufacturer specifications documents. Project costs should be explicitly defined to include, at a minimum, material and labor/installation costs. Sales tax should be excluded from these figures."]
["3. Incentives are calculated based on the lesser of three factors. Buy-down to a 1 year payback based on incremental cost, 50% of incremental project cost, or $0.16/kWh and $1.60/Therm saved in the first year. Projects with a payback without incentive less than 1 year are not eligible."]
["4. All energy savings and cost figures must be explicitly defined and referenced in the application package. Any prescriptive or ineligible measure energy savings and cost should be excluded from the application.  Minimum annual energy savings requirements: 75,000 kWh for custom electric projects and 1,500 Therms for custom gas projects."]
["5. Baseline for custom retrofit projects will be existing conditions, however the custom measure must exceed ASHRAE 90.1-2013 standards by at least 2%. In cases where ASHRAE standards do not apply, the Program will require that custom measures exceed industry standards per the Consortium for Energy Efficiency (CEE), EPA ENERGY STAR, and/or others.  New construction/gut-rehab projects will use ASHRAE 90.1-2013 as the baseline for estimating energy savings. The baseline for equipment replacement projects will be current code (as applicable). Example: >4000 MBH gas boiler is replacing an older unit - The baseline for determining incremental energy savings and cost would be an ASHRAE 90.2013 compliant boiler versus the more efficient proposed unit. A baseline cost must be entered at the bottom of the project info tab for these projects unless otherwise specified by the Program Manager. Please consult the Program Manager if additional assistance is required to determine the applicable baseline per project. Information supporting the proposed project exceeding ASHRAE or applicable industry standard must be provided in the application submission. Proposed measures will not be eligible for Custom incentives if a Prescriptive incentive is available. "]
["6. For LED projects where the product is qualified by either DLC or Energy Star but the qualification category is not present on the Prescriptive Lighting application, the following additional information should be included with the application. 1) Confirmation of existing fixture wattage (ballast/lamp or other system documentation). 2) Documentation supporting existing and proposed lighting run hours. 3) Sample photometric (lighting output) report of existing and proposed conditions for general representative spaces. "]
["7. Pre and Post-Installation inspections will be required for any project where estimated incentives are calculated in excess of $25,000.  All other projects may be subject to random inspection."]
["8. Certain measures may require post-installation metering, trending analysis, and/or a Statement of Substantial Completion by the installing contractor."]
["9. Custom measures projects  require approval before equipment is installed."]
["Custom Application Checklist Items"]
[]
["Please mark all items that apply to the project in the checklist below.  In order for the project to be eligible for incentive, all of the following items must be executed."]
["Complete application, signed by the customer"]
["References for Cost and Energy Savings Calculations included in the application package"]
["Project summary describing existing conditions/equipment and proposed custom technology"]
["Documentation supporting project exceeds ASHRAE 90.1-2013 or applicable industry standards by 2%"]
["Minimum annual energy savings requirement met for this project - 75,000 kWh / 1,500 therms"]
["12 months of electric and/or gas utility bills including any third party supplier invoices"]
["Equipment manufacturer specifications documents"]
[]
["Acknowledgement"]
["Customer Signature",null,null,null,null,null,"Date"]
["Customer Printed Name ",null,null,null,null,null,"Title"]
["By signing, I certify that I have read, understand and agree to the Specific Program Requirements &Terms and Conditions listed on this application form. I understand that pre‐approval is required prior to installation of Custom Electric & Gas  measures in order to remain eligible for the incentive. I agree that this document and all notices and disclosures made or given relating to this document may be created, executed, delivered and retained electronically and that the electronic signatures appearing on this document and any related documents shall have the same legal effect for all purposes as a handwritten signature.The information, statements, and documents I have provided in and with this document are true and accurate to the best of my knowledge. I am aware that if any of them are willfully false, I am subject to punishment. If applicable, I authorize payment of the incentive to the third party listed in the Payee Information field of this application. I will also submit for approval a properly completed application package, which includes this signed application as defined requirement (2) of this application. Depending on the application type and technology, additional information may be needed and will be requested by the Program Manager. Projects with a contract threshold of $15,444 are required to pay no less than prevailing wage rate to workers employed in the performance of any construction undertaken in connection with Board of Public Utilities financial assistance, or undertaken to fulfill any condition of receiving Board of Public Utilities financial assistance, including the performance of any contract to construct, renovate or otherwise prepare a facility, the operations of which are necessary for the receipt of Board of Public Utilities financial assistance.  By submitting this application, or accepting program incentives, applicant agrees to adhere to New Jersey Prevailing Wage requirements, as applicable.  By signing this application, the signatories agree to comply with the provisions of the New Jersey Prevailing Wage Act, N.J.S.A. 34: 11-56.26 et seq., (Act), if and to the extent that Act may apply to the work covered by this application."]
["Email, Mail or Fax your application package DIRECTLY to the Commercial/Industrial Program Manager."]
[null,null,"New Jersey's Clean Energy Program c/o TRC                                                                                                    900 Route 9 North, Suite 404                                                          Woodbridge, NJ 07095            "]
[null,null,null,"Phone: 866-657-6278              Fax: 732-855-0422"]
[]
[null,null,null,"NJApps@njcleanenergy.com"]
["* If submitting via email, please compile and consolidate all documents in a clear and logical format for review. A 5MB file attachment limit is recommended. "]

{"sheet":"Utility Information","index":2,"n_rows":69,"n_cols":6,"rows_kept":69,"cut":false,"hidden":false,"merged":[[68,0,68,1],[68,3,68,4],[56,2,56,3],[57,2,57,3],[58,2,58,3],[59,2,59,3],[60,2,60,3],[61,2,61,3],[62,2,62,3],[63,2,63,3],[64,2,64,3],[65,2,65,3],[67,3,67,4],[24,0,24,1],[24,2,24,5],[55,2,55,3],[26,0,26,5],[45,3,45,4],[46,0,46,1],[46,3,46,4],[48,0,48,5],[49,2,49,3],[50,2,50,3],[51,2,51,3],[52,2,52,3],[53,2,53,3],[54,2,54,3],[20,0,20,1],[20,2,20,5],[22,0,22,1],[22,2,22,5],[23,0,23,1],[23,2,23,5],[16,0,16,5],[18,0,18,1],[18,2,18,5],[19,0,19,1],[19,2,19,5],[10,0,10,5],[11,0,11,5],[12,0,12,5],[13,0,13,5],[14,0,15,5]]}
[]
[]
[]
[]
[]
[]
[]
[]
[]
[]
["Custom Electric/Gas Application - July 1, 2019 to June 30, 2020"]
["Utility Rate Analysis"]
["Instructions"]
["Select electric and gas utility provider from dropdowns below. Enter account number(s) in the space provided."]
["If there are multiple electric or gas accounts, enter a summary of usage and cost for all accounts below. Attach a separate spreadsheet with a breakdown per account."]
[]
["12 months of consecutive utility bills are required for both delivery and supply. "]
[]
["Electric Delivery Utility (dropdown)",null,"Electric Acct. Number"]
[]
[]
[]
["Gas Delivery Utility (dropdown)",null,"Gas Acct. Number"]
[]
[]
[]
["Electric"]
["Service Period \nStart Date","Service Period \nEnd Date","Billed kWh","kW Peak","Delivery Cost","Supply Cost"]
["(Example)  7/1/2016","2016-08-01",1214847,2764,64454.7,112739.14]
[]
[]
[]
[]
[]
[]
[]
[]
[]
[]
[]
[]
[]
[]
[null,"Subtotal/Max",{"$f":"SUM(C30:C43)","v":0},{"$f":"MAX(D30:D43)","v":0},{"$f":"SUM(E30:E43)","v":0},{"$f":"SUM(F30:F43)","v":0}]
[]
[null,null,"Total Billed kWh","Total Electric Cost",null,"$/kWh"]
["Electric Summary",null,{"$f":"SUM(C30:C43)","v":0},{"$f":"E44+F44","v":0},null,{"$f":"IF(C47=0,0,D47/C47)","v":0}]
[]
["Natural Gas"]
["Service Period \nStart Date","Service Period \nEnd Date","Billed Therms",null,"Delivery Cost","Supply Cost"]
["(Example)  7/1/2016","2016-08-01",1214847,null,64454.7,112739.14]
[]
[]
[]
[]
[]
[]
[]
[]
[]
[]
[]
[]
[]
[]
[null,"Subtotal",{"$f":"SUM(C52:C65)","v":0},null,{"$f":"SUM(E52:E65)","v":0},{"$f":"SUM(F52:F65)","v":0}]
[]
[null,null,"Total Billed Therms","Total Gas Cost",null,"$/therm"]
["Gas Summary",null,{"$f":"SUM(C52:C65)","v":0},{"$f":"E66+F66","v":0},null,{"$f":"IF(C69=0,0,D69/C69)","v":0}]

{"sheet":"Project Info","index":3,"n_rows":289,"n_cols":10,"rows_kept":289,"cut":false,"hidden":false,"merged":[[143,9,149,13],[144,0,149,8],[150,0,150,8],[150,9,156,13],[151,0,156,8],[157,0,157,8],[157,9,163,13],[158,0,163,8],[94,9,100,13],[95,0,100,8],[101,0,101,8],[101,9,107,13],[102,0,107,8],[108,0,108,8],[108,9,114,13],[109,0,114,8],[137,0,142,8],[45,9,51,13],[52,9,58,13],[59,9,65,13],[15,0,17,2],[15,3,17,5],[15,6,17,8],[80,0,80,8],[81,0,86,8],[87,0,87,8],[30,0,30,1],[30,2,30,3],[79,0,79,1],[79,2,79,3],[79,5,79,6],[79,7,79,8],[75,0,75,4],[75,5,75,8],[29,5,29,6],[29,7,29,8],[70,2,70,4],[76,0,76,4],[76,5,76,8],[78,0,78,1],[31,0,31,8],[38,0,38,8],[39,0,44,8],[45,0,45,8],[46,0,51,8],[52,0,52,8],[53,0,58,8],[59,0,59,8],[60,0,65,8],[128,2,128,3],[128,5,128,6],[128,7,128,8],[118,2,118,4],[118,5,118,8],[125,5,125,8],[127,0,127,1],[127,2,127,3],[127,5,127,6],[127,7,127,8],[119,2,119,4],[119,5,119,8],[88,0,93,8],[94,0,94,8],[172,6,172,8],[173,6,173,8],[172,0,172,1],[172,2,172,3],[172,4,172,5],[173,0,173,1],[173,2,173,3],[173,4,173,5],[170,6,170,7],[167,0,167,8],[169,0,169,1],[170,0,170,1],[169,2,169,3],[170,2,170,3],[169,4,169,5],[170,4,170,5],[169,6,169,7],[129,0,129,8],[130,0,135,8],[136,0,136,8],[143,0,143,8],[176,6,176,8],[175,0,175,1],[176,0,176,1],[175,2,175,3],[176,2,176,3],[175,4,175,5],[176,4,176,5],[78,2,78,3],[78,5,78,6],[78,7,78,8],[175,6,175,8],[121,0,121,2],[121,3,121,5],[121,6,121,8],[122,0,122,2],[122,3,122,5],[122,6,122,8],[119,0,119,1],[124,0,124,4],[124,5,124,8],[125,0,125,4],[118,0,118,1],[116,0,116,8],[128,0,128,1],[24,6,24,8],[29,0,29,1],[29,2,29,3],[24,0,24,2],[26,5,26,8],[27,5,27,8],[73,3,73,5],[67,0,67,8],[69,0,69,1],[32,0,37,8],[73,6,73,8],[73,0,73,2],[24,3,24,5],[72,6,72,8],[70,0,70,1],[72,0,72,2],[72,3,72,5],[26,0,26,4],[70,5,70,8],[69,2,69,4],[69,5,69,8],[27,0,27,4],[30,5,30,6],[30,7,30,8],[10,0,10,8],[12,0,12,8],[18,0,18,8],[23,6,23,8],[23,0,23,2],[20,0,20,1],[21,0,21,1],[23,3,23,5],[11,0,11,8],[20,2,20,4],[21,2,21,4],[20,5,20,8],[21,5,21,8],[13,1,13,2],[14,1,14,2]]}
[]
[]
[]
[]
[]
[]
[]
[]
[]
[]
["Custom Electric/Gas Application - July 1, 2019 to June 30, 2020"]
[" (Incentive will not calculate if customer utility information is blank in the Utility Information Tab)"]
["Custom Project Details"]
["Electric Utility","Account Number(s)",null,"Annual kWh Consumption","Total Cost + 3rd Party Supply","Gas Utility","Account Number(s)","Annual Therm Consumption","Total Cost + 3rd Party Supply"]
[{"$f":"IF('Utility Information'!$A$20=0,\"\",'Utility Information'!$A$20)","v":""},{"$f":"IF('Utility Information'!$C$20=0,\"\",CONCATENATE(('Utility Information'!$C$20),\" / \",'Utility Information'!$C$21))","v":""},null,{"$f":"'Utility Information'!$C$47","v":0},{"$f":"'Utility Information'!$D$47","v":0},{"$f":"IF('Utility Information'!$A$24=0,\"\",'Utility Information'!$A$24)","v":""},{"$f":"IF('Utility Information'!$C$24=0,\"\",CONCATENATE(('Utility Information'!$C$24),\" / \",'Utility Information'!$C$25))","v":""},{"$f":"'Utility Information'!$C$69","v":0},{"$f":"'Utility Information'!$D$69","v":0}]
["If submitting multiple custom measures, please check the appropriate box to the right."]
[]
[]
["Measure #1"]
[]
["Equipment Location",null,"Existing Equipment Type",null,null,"Proposed Equipment Type"]
[]
[]
["Pre-Install Ann. Hours (associated w/ measure)",null,null,"Post-Install Ann. Hours (associated w/ measure)",null,null,"Measure Life (per operating hours / 18 yr Max)"]
[null,null,null,null,null,null,null,null,null,{"$f":"IF($G25>18,\"<-- Measure life may not exceed 18 years. Please revise.\",\"\")","v":""}]
[]
["Total Measure Cost (Material and Labor)",null,null,null,null,"Ann. O&M Savings ($) if applicable"]
[]
[]
["Existing System kWh (Annual)",null,"Proposed System kWh (Annual)",null,"Peak Demand Reduced (kW)","Existing System Therms (Annual)",null,"Proposed System Therms (Annual)"]
[]
["A - Existing Equipment Description and Operation:"]
["Enter Text Here"]
[]
[]
[]
[]
[]
["B - Proposed Equipment Description and Operation:"]
["Insert Text Here"]
[]
[]
[]
[]
[]
["C - Savings Methodology Description: ",null,null,null,null,null,null,null,null,"Describe the source of electric and/or gas savings associated with implementation of the custom measure and the methodology, including any assumptions, that were used in developing annual savings calculations."]
["Insert Text Here"]
[]
[]
[]
[]
[]
["D - Baseline Determination Description:",null,null,null,null,null,null,null,null,"Program Efficiency Requirement:\nBaseline for custom retrofit projects will be existing conditions, however the custom measure must exceed ASHRAE 90.1-2013 standards by at least 2%.\nIn cases where ASHRAE standards do not apply, the Program will require that custom measures exceed industry standards per the Consortium for Energy Efficiency (CEE), EPA ENERGY STAR, and/or others.  New construction/gut-rehab projects will use ASHRAE 90.1-2013 as the baseline for estimating energy savings. The baseline for equipment replacement projects will be current code (as applicable). A baseline cost must be entered at the bottom of the project info tab for these projects unless otherwise specified by the Market Manager. Information supporting the proposed project exceeding ASHRAE or applicable industry standard must be provided in the application submission. Proposed measures provided a prescriptive incentive will not be eligible for custom incentives. \n\nD. Identify the baseline equipment and/or condition used in the provided savings calculations. Describe in detail how the proposed Custom measure exceeds the program efficiency requirements stated above.\nIf a baseline cost is required, describe the basis for selection of the baseline equipment/technology as defined by ASHRAE or applicable industry standard. Please reference areas of code that apply to this measure.\n"]
["Insert Text Here"]
[]
[]
[]
[]
[]
["E - Operation and Maintenance Savings Description:",null,null,null,null,null,null,null,null,"Describe how operational and maintenance savings were calculated or estimated. Attach any O&M calculations or documentation to this application. If not applicable, enter n/a. O&M savings does NOT include energy cost savings. "]
["Insert Text Here"]
[]
[]
[]
[]
[]
[]
["Measure #2"]
[]
["Equipment Location",null,"Existing Equipment Type",null,null,"Proposed Equipment Type"]
[]
[]
["Pre-Install Ann. Hours (associated w/ measure)",null,null,"Post-Install Ann. Hours (associated w/ measure)",null,null,"Measure Life (per operating hours)"]
[null,null,null,null,null,null,null,null,null,{"$f":"IF($G74>18,\"<-- Measure life may not exceed 18 years. Please revise.\",\"\")","v":""}]
[]
["Total Measure Cost (Material and Labor)",null,null,null,null,"Ann. O&M Savings ($) if applicable"]
[]
[]
["Existing System kWh (Annual)",null,"Proposed System kWh (Annual)",null,"Peak Demand Reduced (kW)","Existing System Therms (Annual)",null,"Proposed System Therms (Annual)"]
[]
["A - Existing Equipment Description and Operation:"]
["Enter Text Here"]
[]
[]
[]
[]
[]
["B - Proposed Equipment Description and Operation:"]
["Insert Text Here"]
[]
[]
[]
[]
[]
["C - Savings Methodology Description: ",null,null,null,null,null,null,null,null,"Describe the source of electric and/or gas savings associated with implementation of the custom measure and the methodology, including any assumptions, that were used in developing annual savings calculations."]
["Insert Text Here"]
[]
[]
[]
[]
[]
["D - Baseline Determination Description:",null,null,null,null,null,null,null,null,"Program Efficiency Requirement:\nBaseline for custom retrofit projects will be existing conditions, however the custom measure must exceed ASHRAE 90.1-2013 standards by at least 2%.\nIn cases where ASHRAE standards do not apply, the Program will require that custom measures exceed industry standards per the Consortium for Energy Efficiency (CEE), EPA ENERGY STAR, and/or others.  New construction/gut-rehab projects will use ASHRAE 90.1-2013 as the baseline for estimating energy savings. The baseline for equipment replacement projects will be current code (as applicable). A baseline cost must be entered at the bottom of the project info tab for these projects unless otherwise specified by the Market Manager. Information supporting the proposed project exceeding ASHRAE or applicable industry standard must be provided in the application submission. Proposed measures provided a prescriptive incentive will not be eligible for custom incentives. \n\nD. Identify the baseline equipment and/or condition used in the provided savings calculations. Describe in detail how the proposed Custom measure exceeds the program efficiency requirements stated above.\nIf a baseline cost is required, describe the basis for selection of the baseline equipment/technology as defined by ASHRAE or applicable industry standard. Please reference areas of code that apply to this measure.\n"]
["Insert Text Here"]
[]
[]
[]
[]
[]
["E - Operation and Maintenance Savings Description:",null,null,null,null,null,null,null,null,"Describe how operational and maintenance savings were calculated or estimated. Attach any O&M calculations or documentation to this application. If not applicable, enter n/a. O&M savings does NOT include energy cost savings. "]
["Insert Text Here"]
[]
[]
[]
[]
[]
[]
["Measure #3"]
[]
["Equipment Location",null,"Existing Equipment Type",null,null,"Proposed Equipment Type"]
[]
[]
["Pre-Install Ann. Hours (associated w/ measure)",null,null,"Post-Install Ann. Hours (associated w/ measure)",null,null,"Measure Life (per operating hours)"]
[null,null,null,null,null,null,null,null,null,{"$f":"IF($G25>18,\"<-- Measure life may not exceed 18 years. Please revise.\",\"\")","v":""}]
[]
["Total Measure Cost (Material and Labor)",null,null,null,null,"Ann. O&M Savings ($) if applicable"]
[]
[]
["Existing System kWh (Annual)",null,"Proposed System kWh (Annual)",null,"Peak Demand Reduced (kW)","Existing System Therms (Annual)",null,"Proposed System Therms (Annual)"]
[]
["A - Existing Equipment Description and Operation:"]
["Enter Text Here"]
[]
[]
[]
[]
[]
["B - Proposed Equipment Description and Operation:"]
["Insert Text Here"]
[]
[]
[]
[]
[]
["C - Savings Methodology Description: ",null,null,null,null,null,null,null,null,"Describe the source of electric and/or gas savings associated with implementation of the custom measure and the methodology, including any assumptions, that were used in developing annual savings calculations."]
["Insert Text Here"]
[]
[]
[]
[]
[]
["D - Baseline Determination Description:",null,null,null,null,null,null,null,null,"Program Efficiency Requirement:\nBaseline for custom retrofit projects will be existing conditions, however the custom measure must exceed ASHRAE 90.1-2013 standards by at least 2%.\nIn cases where ASHRAE standards do not apply, the Program will require that custom measures exceed industry standards per the Consortium for Energy Efficiency (CEE), EPA ENERGY STAR, and/or others.  New construction/gut-rehab projects will use ASHRAE 90.1-2013 as the baseline for estimating energy savings. The baseline for equipment replacement projects will be current code (as applicable). A baseline cost must be entered at the bottom of the project info tab for these projects unless otherwise specified by the Market Manager. Information supporting the proposed project exceeding ASHRAE or applicable industry standard must be provided in the application submission. Proposed measures provided a prescriptive incentive will not be eligible for custom incentives. \n\nD. Identify the baseline equipment and/or condition used in the provided savings calculations. Describe in detail how the proposed Custom measure exceeds the program efficiency requirements stated above.\nIf a baseline cost is required, describe the basis for selection of the baseline equipment/technology as defined by ASHRAE or applicable industry standard. Please reference areas of code that apply to this measure.\n"]
["Insert Text Here"]
[]
[]
[]
[]
[]
["E - Operation and Maintenance Savings Description:",null,null,null,null,null,null,null,null,"Describe how operational and maintenance savings were calculated or estimated. Attach any O&M calculations or documentation to this application. If not applicable, enter n/a. O&M savings does NOT include energy cost savings. "]
["Insert Text Here"]
[]
[]
[]
[]
[]
[]
[]
[]
["Custom Project Totals & Incentives"]
[]
["Total Project Cost",null,"Total Ann. kWh Savings",null,"Total Peak kW Red.",null,"Total Ann. Therm Savings",null,"Project Life (yrs)"]
[{"$f":"SUM(A28,A77,A126)","v":0},null,{"$f":"SUM(A31,A80,A129)-SUM(C31,C80,C129)","v":0},null,{"$f":"SUM(E31,E80,E129)","v":0},null,{"$f":"SUM(F31,F80,F129)-SUM(H31,H80,H129)","v":0},null,{"$f":"IF(N(C174)=0,0,ROUND((IF(G25=\"\",0,G25*(IF(N(D15)=0,0,(A31-C31)*(E15/D15))+IF(N(H15)=0,0,(F31-H31)*(I15/H15))))+IF(G74=\"\",0,G74*(IF(N(D15)=0,0,(A80-C80)*(E15/D15))+IF(N(H15)=0,0,(F80-H80)*(I15/H15))))+IF(G123=\"\",0,G123*(IF(N(D15)=0,0,(A129-C129)*(E15/D15))+IF(N(H15)=0,0,(F129-H129)*(I15/H15)))))/C174,0))","v":0}]
[]
["Baseline Project Cost*",null,"Total Ann. Energy Cost Savings",null,"Total Ann. O&M Savings",null,"Estimated Incentive"]
[null,null,{"$f":"(IF(N($D$15)=0,0,(($E$15/$D$15)*C171)))+(IF(N($H$15)=0,0,(($I$15/$H$15)*G171)))","v":0},null,{"$f":"SUM(F28,F77,F126)","v":0},null,{"$f":"IF(A177<=1,\"Not Eligible - Payback less than 1 year\",IF(AND(C171<75000,G171<1500),\"Insufficient Energy Savings\",IF(I171=0,\"Project life not entered\",IF(C174=0,\"No energy cost savings\",MAX(0,MIN(0.16*C171+1.6*G171,0.5*(A171-A174),(A171-A174)-(C174+E174)))))))","v":"Not Eligible - Payback less than 1 year"}]
[]
["Project Simple Payback without Incentives (yrs)",null,"Project Simple Payback with Incentives (yrs)",null,"Project IRR %",null,"Incentive Based On"]
[{"$f":"IF(C174+E174=0,0,(A171-A174)/(C174+E174))","v":0},null,{"$f":"IF(OR(G174=\"Insufficient Energy Savings\",G174=\"Not Eligible - Payback less than 1 year\"),\"N/A\",(A171-A174)/(C174+E174+G174))","v":"N/A"},null,{"$f":"'IRR Tool'!B4","v":0},null,{"$f":"IF(ISTEXT(G174),\"Project ineligible for incentive\",IF(MIN(0.16*C171+1.6*G171,0.5*(A171-A174),(A171-A174)-(C174+E174))=(0.16*C171+1.6*G171),\"$0.16 per annual kWh saved and $1.60 per annual Therm saved\",IF(MIN(0.16*C171+1.6*G171,0.5*(A171-A174),(A171-A174)-(C174+E174))=0.5*(A171-A174),\"50% of Project Cost\",\"Buydown to a 1-year Payback\")))","v":"Project ineligible for incentive"}]
["* Baseline project cost for new construction, major gut-rehab or equipment replacement projects."]
[]
[]
[]
[]
[]
[]
[]
[]
[]
[]
[]
[]
[]
[]
[]
[]
[]
[]
[]
[]
[]
[]
[]
[]
[]
[]
[]
[]
[]
[]
[]
[]
[]
[]
[]
[]
[]
[]
[]
[]
[]
[]
[]
[]
[]
[]
[]
[]
[]
[]
[]
[]
[]
[]
[]
[]
[]
[]
[]
[]
[]
[]
[]
[]
[]
[]
[]
[]
[]
[]
[]
[]
[]
[]
[]
[]
[]
[]
[]
[]
[]
[]
[]
[]
[]
[]
[]
[]
[]
[]
[]
[]
[]
[]
[]
[]
[]
[]
[]
[]
[]
[]
[]
[]
[]
[]
[]
[]
[]
[{"$f":"'Customer Info'!E34","v":0}]
[{"$f":"'Customer Info'!#REF!","v":{"$error":"#REF!"}}]

{"sheet":"IRR Tool","index":4,"n_rows":4,"n_cols":46,"rows_kept":4,"cut":false,"hidden":true,"merged":[]}
["Cost for IRR",{"$f":"'Project Info'!A171-'Project Info'!A174","v":0}]
["Measure Life",{"$f":"'Project Info'!I171","v":0},null,"Year",0,1,2,3,4,5,6,7,8,9,10,11,12,13,14,15,16,17,18,19,20,21,22,23,24,25,26,27,28,29,30,31,32,33,34,35,36,37,38,39,40,"R Est"]
["Annual Cost Savings",{"$f":"'Project Info'!C174+'Project Info'!E174","v":0},null,"Cash Flow",{"$f":"-B1","v":0},{"$f":"$B$3","v":0},{"$f":"IF(COUNTIF(F3,$B$3)<$B$2,$B$3,0)","v":0},{"$f":"IF(COUNTIF($F$3:G3,$B$3)<$B$2,$B$3,0)","v":0},{"$f":"IF(COUNTIF($F$3:H3,$B$3)<$B$2,$B$3,0)","v":0},{"$f":"IF(COUNTIF($F$3:I3,$B$3)<$B$2,$B$3,0)","v":0},{"$f":"IF(COUNTIF($F$3:J3,$B$3)<$B$2,$B$3,0)","v":0},{"$f":"IF(COUNTIF($F$3:K3,$B$3)<$B$2,$B$3,0)","v":0},{"$f":"IF(COUNTIF($F$3:L3,$B$3)<$B$2,$B$3,0)","v":0},{"$f":"IF(COUNTIF($F$3:M3,$B$3)<$B$2,$B$3,0)","v":0},{"$f":"IF(COUNTIF($F$3:N3,$B$3)<$B$2,$B$3,0)","v":0},{"$f":"IF(COUNTIF($F$3:O3,$B$3)<$B$2,$B$3,0)","v":0},{"$f":"IF(COUNTIF($F$3:P3,$B$3)<$B$2,$B$3,0)","v":0},{"$f":"IF(COUNTIF($F$3:Q3,$B$3)<$B$2,$B$3,0)","v":0},{"$f":"IF(COUNTIF($F$3:R3,$B$3)<$B$2,$B$3,0)","v":0},{"$f":"IF(COUNTIF($F$3:S3,$B$3)<$B$2,$B$3,0)","v":0},{"$f":"IF(COUNTIF($F$3:T3,$B$3)<$B$2,$B$3,0)","v":0},{"$f":"IF(COUNTIF($F$3:U3,$B$3)<$B$2,$B$3,0)","v":0},{"$f":"IF(COUNTIF($F$3:V3,$B$3)<$B$2,$B$3,0)","v":0},{"$f":"IF(COUNTIF($F$3:W3,$B$3)<$B$2,$B$3,0)","v":0},{"$f":"IF(COUNTIF($F$3:X3,$B$3)<$B$2,$B$3,0)","v":0},{"$f":"IF(COUNTIF($F$3:Y3,$B$3)<$B$2,$B$3,0)","v":0},{"$f":"IF(COUNTIF($F$3:Z3,$B$3)<$B$2,$B$3,0)","v":0},{"$f":"IF(COUNTIF($F$3:AA3,$B$3)<$B$2,$B$3,0)","v":0},{"$f":"IF(COUNTIF($F$3:AB3,$B$3)<$B$2,$B$3,0)","v":0},{"$f":"IF(COUNTIF($F$3:AC3,$B$3)<$B$2,$B$3,0)","v":0},{"$f":"IF(COUNTIF($F$3:AD3,$B$3)<$B$2,$B$3,0)","v":0},{"$f":"IF(COUNTIF($F$3:AE3,$B$3)<$B$2,$B$3,0)","v":0},{"$f":"IF(COUNTIF($F$3:AF3,$B$3)<$B$2,$B$3,0)","v":0},{"$f":"IF(COUNTIF($F$3:AG3,$B$3)<$B$2,$B$3,0)","v":0},{"$f":"IF(COUNTIF($F$3:AH3,$B$3)<$B$2,$B$3,0)","v":0},{"$f":"IF(COUNTIF($F$3:AI3,$B$3)<$B$2,$B$3,0)","v":0},{"$f":"IF(COUNTIF($F$3:AJ3,$B$3)<$B$2,$B$3,0)","v":0},{"$f":"IF(COUNTIF($F$3:AK3,$B$3)<$B$2,$B$3,0)","v":0},{"$f":"IF(COUNTIF($F$3:AL3,$B$3)<$B$2,$B$3,0)","v":0},{"$f":"IF(COUNTIF($F$3:AM3,$B$3)<$B$2,$B$3,0)","v":0},{"$f":"IF(COUNTIF($F$3:AN3,$B$3)<$B$2,$B$3,0)","v":0},{"$f":"IF(COUNTIF($F$3:AO3,$B$3)<$B$2,$B$3,0)","v":0},{"$f":"IF(COUNTIF($F$3:AP3,$B$3)<$B$2,$B$3,0)","v":0},{"$f":"IF(COUNTIF($F$3:AQ3,$B$3)<$B$2,$B$3,0)","v":0},{"$f":"IF(COUNTIF($F$3:AR3,$B$3)<$B$2,$B$3,0)","v":0},{"$f":"IF($B$3*$B$2>($B$1),0.3,-0.3)","v":-0.3}]
["IRR",{"$f":"IF(OR(B1=0,B2=0,B3=0),0,IRR(E3:AS3,AT3))","v":0}]

{"sheet":"Support","index":5,"n_rows":53,"n_cols":8,"rows_kept":53,"cut":false,"hidden":true,"merged":[]}
["Company Type","Incorporated","Payee","Electric Utility","Gas Utility","Tech Code","Measure Life","Building Type"]
["Commercial","Yes","Customer","Atlantic City Electric","South Jersey Gas","Lighting",15,"Bank / Financial Center"]
["Industrial","No","Contractor","PSE&G","New Jersey Natural Gas","HVAC",15,"Center / Club / Meeting Hall / Public Assembly"]
["Municipality","Other","Other","Rockland Electric Co.","Elizabethtown Gas","AMC",15,"Classroom / Laboratory / Administrative"]
["County",null,null,"Jersey Central P&L","PSE&G","Refrigeration",10,"Clinic / Medical Office"]
["State",null,null,null,null,"WHR",18,"Convenience Store "]
["Regional Authority",null,null,null,null,"Other","-","Court House"]
["Federal",null,null,null,null,null,null,"Datacenter / Telecommunications"]
["School: K-12",null,null,null,null,null,null,"Dormitory"]
["School: College / University : Public",null,null,null,null,null,null,"Elementary School"]
["School: College / University : Private",null,null,null,null,null,null,"Emergency Services "]
["School: Vocational / Technical",null,null,null,null,null,null,"Energy/Power Station"]
["School: Other",null,null,null,null,null,null,"Garage / Parking Structure"]
["Multifamily",null,null,null,null,null,null,"Gas Station (stand-alone)"]
["Non-Profit",null,null,null,null,null,null,"Gas Station (w/ Convenience Store)"]
["Other",null,null,null,null,null,null,"Grocery / Supermarket / Food Sales "]
[null,null,null,null,null,null,null,"Gymnasium / Fitness Center"]
[null,null,null,null,null,null,null,"High School"]
[null,null,null,null,null,null,null,"Hospital / Medical Center"]
[null,null,null,null,null,null,null,"Hotel / Casino / Convention Center"]
[null,null,null,null,null,null,null,"Hotel / Motel"]
[null,null,null,null,null,null,null,"Laundromat"]
[null,null,null,null,null,null,null,"Library"]
[null,null,null,null,null,null,null,"Mall"]
[null,null,null,null,null,null,null,"Middle School"]
[null,null,null,null,null,null,null,"Mixed-Use"]
[null,null,null,null,null,null,null,"Multifamily - Low Rise / Garden"]
[null,null,null,null,null,null,null,"Multifamily - Mid/High Rise"]
[null,null,null,null,null,null,null,"Nursing Home / Assisted Living"]
[null,null,null,null,null,null,null,"Office"]
[null,null,null,null,null,null,null,"Other"]
[null,null,null,null,null,null,null,"Parking Lot / Street / Traffic Lights"]
[null,null,null,null,null,null,null,"Penitentiary / Jail / Prison"]
[null,null,null,null,null,null,null,"Pharmaceutical / Laboratory"]
[null,null,null,null,null,null,null,"Post Office / Mailing Center"]
[null,null,null,null,null,null,null,"Pre-school / Daycare"]
[null,null,null,null,null,null,null,"Private School / Mixed Grades"]
[null,null,null,null,null,null,null,"Production / Manufacturing"]
[null,null,null,null,null,null,null,"Recreation / Entertainment / Parks"]
[null,null,null,null,null,null,null,"Refinery"]
[null,null,null,null,null,null,null,"Religious Institution"]
[null,null,null,null,null,null,null,"Restaurant - Fast Food / Food Service"]
[null,null,null,null,null,null,null,"Restaurant - Sit Down / Bar "]
[null,null,null,null,null,null,null,"Retail"]
[null,null,null,null,null,null,null,"Service"]
[null,null,null,null,null,null,null,"Storage - Conditioned"]
[null,null,null,null,null,null,null,"Storage - Unconditioned"]
[null,null,null,null,null,null,null,"Student Center / Cafeteria"]
[null,null,null,null,null,null,null,"Transportation"]
[null,null,null,null,null,null,null,"University / College - General"]
[null,null,null,null,null,null,null,"Warehouse - Conditioned / Refrigerated"]
[null,null,null,null,null,null,null,"Warehouse - Unconditioned"]
[null,null,null,null,null,null,null,"Water / Wastewater Treatment / Pumping"]

{"sheet":"Terms and Conditions","index":6,"n_rows":83,"n_cols":1,"rows_kept":83,"cut":false,"hidden":false,"merged":[]}
["NJ SmartStart Buildings® Program Terms and Conditions FY2020 (July 1, 2019 – June 30, 2020)"]
["Program Terms and Conditions"]
[]
["Eligibility"]
["1.        This application package must be received by the Program Manager on or before June 30, 2020 in order to be eligible for the fiscal year program (July 1, 2019 - June 30, 2020) incentives. All participating customers are required to submit the most current application form. All submissions will be reviewed based on the current program requirements and incentive levels approved by the Board of Public Utilities."]
["2.        Program Incentives are available to non-residential retail electric and/or gas service participating customers of New Jersey Utilities. A participating customer must pay Societal Benefits Charges under a New Jersey Utility account serving the fuel type (electric or gas) applicable to the specific Energy-Efficient Measure. Participating customers who have not contributed to the Societal Benefits Charge of the applicable New Jersey Utility are not eligible for incentives offered through this program. New Jersey Utilities include Atlantic City Electric, Jersey Central Power & Light, Rockland Electric Company, New Jersey Natural Gas, Elizabethtown Gas, PSE&G and South Jersey Gas."]
["3.        Each utility account requires a complete, separate application. Projects for the same utility account and the same technology being done at the same time should be submitted on one application."]
["4.        Requirements regarding Initial Applications and Pre-installation Approvals"]
["a.        All Custom applications must be approved by the Program Manager prior to installation."]
["b.        Prescriptive Lighting, Performance Lighting, and Prescriptive Lighting applications seeking an incentive ≥$100,000 must be approved by the Program Manager prior to installation. For any other Prescriptive applications, installation may proceed without the Program Manager’s approval."]
["c.        Any installation implemented without the Program Manager’s approval is at the applicant’s own risk that, among other things, the application will be rejected. "]
["d.        Applications that do not require the Program Manager’s approval prior to installation must be submitted within 12 months of equipment purchase. Sufficient documentation must be provided confirming the date of equipment purchase (material invoice, purchase order, etc.)."]
["5.        In order to be eligible for program incentives, a participating customer or an agent (contractor/vendor) authorized by a participating customer, must submit a properly completed application package that is signed by the participating customer. A complete application package should include all documentation listed in the checklist section of the application."]
["6.        Applications signed by someone other than the customer require a letter of authorization."]
["7.        Project invoices submitted after installation should list both the labor and material costs separately. The invoice should include a description of the equipment installed, quantity, and unit price. For projects that are self-installed by the participating customer, a signed letter on participating customer letterhead may be provided in lieu of a labor invoice attesting to the start and end dates of the self-installation."]
["8.        Energy-Efficient Measures must be installed in buildings located within a New Jersey Utilities’ service territory and designated on the participating customer’s incentive application."]
["9.        Program Incentives are available for qualified Energy-Efficient Measures as listed and described in the Program materials and incentive applications."]
["10.     The participating customer must ultimately own the equipment through an up-front purchase. Equipment procured by participating customers through another program offered by New Jersey's Clean Energy Program or the New Jersey Utilities, as applicable, are not eligible for incentives through this program."]
["11.     Incomplete application submissions, applications requiring inspections and unanticipated periods of high volume may cause processing delays."]
["Incentive Amounts"]
["1.     Program Incentives will not exceed:"]
["a.        the approved Program Incentive amount, or"]
["b.        total project cost of the Energy-Efficient Measure, whichever is less, excluding NJ state sales tax as determined by the Program Manager. Project costs include the expenses directly associated with the Energy-Efficient Measure."]
["2.     Products offered at no direct cost to the participating customer are ineligible."]
["3.     Program Incentives are limited to $500,000 per utility account in a fiscal year."]
["4.     Entities owned or operated by Municipalities, K-12 public schools, and customers located in UEZs or OZs zones may be eligible for an enhanced incentive equal to an additional 100% of the incentive values set forth in the incentive table for each technology, but subject to a cap of the applicant’s cost for the project (material and labor). The foregoing does not include new construction."]
["Inspections"]
["The Program Manager reserves the right to conduct a pre-inspection of the facility prior to the installation of equipment for Prescriptive Lighting, Performance Lighting and Prescriptive Lighting Controls applications with an incentive ≥$100,000 and all Custom Measures applications. Pre-inspections will be performed prior to the issuance of the approval letter. Work must not begin prior to formal Program Manager approval of the application."]
["1.     All projects are subject to post-inspection to confirm equipment installation prior to payment."]
["2.     The Program Manager reserves the right to verify sales transactions and to have reasonable access to Participating Customer’s facility to inspect pre-existing product or equipment (if applicable) and the Energy-Efficient Measures installed under this Program, prior to issuing incentives or at a later time."]
["3.     The applicant shall allow reasonable access to the property to inspect the installation and performance of the technologies and installations that are eligible for incentives under the guidelines of New Jersey’s Clean Energy Program."]
[]
["Tax Clearance Certificate Requirements"]
["1.     Participating customers must provide a Tax Clearance Form (entitled \"Business Assistance or Incentive Clearance Certificate\") for Board of Public Utilities use."]
["2.     The name of the customer listed on the certificate must match the participating customer name listed on the utility bill and the application."]
["3.     The participating customer tax ID listed on the application must agree with the tax ID listed on the Certificate."]
["4.     Certificates are valid for 180 days and must be valid on the date the Program Manager signs off on the incentive."]
["Deficient Applications"]
["1.     If an application package is incomplete, information is missing or deemed insufficient, a deficiency notice will be sent to the participating customer requesting additional information via e-mail. The information or documentation requested on the letter must be received by the Program Manager within 30 days of the date of the request. If additional deficiencies are still noted, there will be up to two additional notifications issued with the same time frames."]
["2.     If a participating customer fails to respond to a deficiency request within 30 days or exceeds the three attempts provided, the application will be cancelled. If a project is cancelled, participating customers may re-apply under the program incentives and requirements in place at the time of re-application."]
["Expirations"]
["1.     Pre-approved projects are given a one-year approval in which the proposed measure is to be installed and operational. When a project has expired the participating customer will have 30 days to either submit a request for an extension OR submit final project paperwork. If no response is received within 30 days of expiration, the project will be cancelled."]
["2.     Extension requests must be in writing from the participating customer and include the circumstances that led to the extension request, and the percentage of the project completed."]
["3.     Extension requests may be granted for a period no longer than six (6) months. The Program Manager may provide up to two, six month extensions from the original approval expiration date."]
["4.     Upon expiration, if the project has not started and the participating customer is still interested in installing the equipment, the existing application will be cancelled and a new application package must be submitted, which will be reviewed under the program incentives and requirements in place at the time of re-submittal."]
["Change in participating customer name/payee after pre-approval"]
["To initiate a change to the participating customer name or payee on an approved application, the following documentation must be provided:"]
["1.     A signed letter on participating customer letterhead authorizing the change or a new, fully-signed application reflecting the updated participating customer or payee name; or"]
["2.     For name change of the applicant/customer, a utility bill in the name of the new participating customer."]
["All such changes requests are subject to Program Manager approval. Certain requests may require additional information to be submitted as defined by the Program Manager."]
["Tax Liability"]
["The Program Manager will not be responsible for any tax liability that may be imposed on any participating customer as a result of the payment of Program Incentives. All Participating Customers must supply their federal tax identification number or social security number to the Program Manager on the application form in order to receive a Program Incentive."]
["Prevailing Wage"]
["Participating projects with a contract at or above current prevailing wage contract threshold amount set pursuant to the New Jersey Prevailing Wage Act (N.J.S.A. 34:11-56.25 et seq.) are required to pay no less than prevailing wage rate to workers employed in the performance of any construction undertaken in connection with Board of Public Utilities financial assistance, or undertaken to fulfill any condition of receiving Board of Public Utilities financial assistance, including the performance of any contract to construct, renovate or otherwise prepare a facility, the operations of which are necessary for the receipt of Board of Public Utilities financial assistance. By submitting an application, or accepting program incentives, applicant agrees to adhere to New Jersey Prevailing Wage requirements, as applicable. By signing the application, the signatories agree to comply with the provisions of the New Jersey Prevailing Wage Act, N.J.S.A. 34: 11-56.25 et seq., (Act), if and to the extent that Act may apply to the work covered by the application.  More information can be found at  https://www.nj.gov/labor/wagehour/regperm/public_contracts_general.html"]
["Endorsement"]
["The Program Manager and Administrator do not endorse, support or recommend any particular manufacturer, product or system design in promoting this Program."]
["Warranties"]
["THE PROGRAM MANAGER AND ADMINISTRATOR DO NOT WARRANT THE PERFORMANCE OF INSTALLED EQUIPMENT, AND/OR SERVICES RENDERED AS PART OF THIS PROGRAM, EITHER EXPRESSLY OR IMPLICITLY. NO WARRANTIES OR REPRESENTATIONS OF ANY KIND, WHETHER STATUTORY, EXPRESSED, OR IMPLIED, INCLUDING, WITHOUT LIMITATIONS, WARRANTIES OF MERCHANTABILITY OR FITNESS FOR A PARTICULAR PURPOSE REGARDING EQUIPMENT OR SERVICES PROVIDED BY A MANUFACTURER OR VENDOR. CONTACT YOUR VENDOR/SERVICES PROVIDER FOR DETAILS REGARDING PERFORMANCE AND WARRANTIES."]
["Limitation of Liability"]
["By virtue of participating in this Program, Participating Customers agree to waive any and all claims or damages against the Program Manager or the Administrator, except the receipt of the Program Incentive. Participating Customers agree that the Program Manager’s and Administrator’s liability, in connection with this Program, is limited to paying the Program Incentive specified. Under no circumstances shall the Program Manager, its representatives, or subcontractors, or the Administrator, be liable for any lost profits, special, punitive, consequential or incidental damages or for any other damages or claims connected with or resulting from participation in this Program. Further, any liability attributed to the Program Manager under this Program shall be individual, and not joint and/or several."]
["Termination"]
["The New Jersey Board of Public Utilities reserves the right to extend, modify (this includes modification of Program Incentive levels) or terminate this Program without prior or further notice."]
["Participating Customer’s Certification"]
["Participating Customer certifies that he/she purchased and installed the equipment listed in their application at their defined New Jersey location. Participating Customer agrees that all information is true and that he/she has conformed to all of the Program and equipment requirements listed in the application."]
["Acknowledgement"]
["The applicant gives the Program Manager permission to share records with the New Jersey Board of Public Utilities, and contractors it selects to manage, coordinate or evaluate the New Jersey SmartStart Buildings Program including the release of electric and natural gas utility billing information, as well as make available to the public any and all information required by the Open Public Records Act and/or other applicable laws."]
["Enhanced Incentive"]
["An enhanced incentive equal to an additional 100% of the incentive values set forth in the incentive table for each technology, but subject to a cap of the applicant’s cost for the project (material and labor), for measures installed at an existing building (including an existing Multifamily building to which this Program applies) (a) located within a designated Urban Enterprise Zone (UEZ) or Opportunity Zone (OZ) or (b) owned or operated by a K-12 public school or a municipal entity (does not include new construction or custom)."]
["Definitions"]
["Energy-Efficient Measures – Any device eligible to receive a Program Incentive payment through the Program."]
["New Jersey Utilities – The regulated electric and/or gas utilities in the State of New Jersey:"]
["1.        Atlantic City Electric"]
["2.        Jersey Central Power & Light"]
["3.        Rockland Electric Company"]
["4.        New Jersey Natural Gas"]
["5.        Elizabethtown Gas"]
["6.        PSE&G"]
["7.        South Jersey Gas"]
["Administrator – New Jersey Board of Public Utilities, Division of Clean Energy."]
["Participating Customers – Those non-residential electric and/or gas service customers of the New Jersey Utilities who participate in this Program. Product Installation or Equipment Installation – Installation of the Energy-Efficient Measures."]
["Program – The Commercial and Industrial Energy-Efficient Construction Program (New Jersey SmartStart Buildings) offered herein by the New Jersey Board of Public Utilities, Office of Clean Energy pursuant to state regulatory approval under the New Jersey Electric Discount and Energy Competition Act, NJSA 48:3-49, et seq."]
["Program Incentives – Refers to the amount or level of incentive that the Program provides to Participating Customers pursuant to the Program offered herein (see description under “Incentive Amount” heading)."]
["Program Manager – TRC."]